bitfinex/quotes_ETHUSD_20251019
["timestamp","ask_amount","ask_price","bid_price","bid_amount"]
[1760875010807,0.172,3930.4,3930.0,0.39658523]
[1760875011181,0.2001,3930.3,3930.0,0.39658523]
[1760875011366,0.2001,3930.3,3930.0,0.1292]
[1760875011572,0.2001,3930.2,3930.0,0.1292]
[1760875012587,0.2001,3930.1,3930.0,0.002]
[1760875012924,2.74456451,3930.1,3930.0,0.002]
[1760875014304,2.54446451,3930.1,3930.0,0.002]
[1760875015370,0.1272,3930.3,3930.0,0.002]
[1760875015805,2.54446181,3930.2,3930.0,0.002]
[1760875015983,2.74456181,3930.2,3930.0,0.002]
[1760875016174,2.54446181,3930.2,3930.0,0.002]
[1760875016376,2.74456181,3930.2,3930.0,0.002]
[1760875016709,2.54446181,3930.2,3930.0,0.002]
[1760875017100,2.54446451,3930.1,3930.0,0.002]
[1760875017619,0.172,3930.4,3930.0,0.4657]
[1760875017938,2.71628092,3930.4,3930.0,0.002]
[1760875018216,0.172,3930.4,3930.0,0.002]
[1760875018416,2.7162854,3930.4,3930.0,0.002]
[1760875020180,0.172,3930.4,3930.0,0.002]
[1760875020380,0.172,3930.4,3930.0,0.4657]
[1760875020602,0.172,3930.4,3930.3,0.2232]
[1760875020803,0.172,3930.4,3930.0,0.002]
[1760875021586,0.3742,3930.4,3930.0,0.002]
[1760875021912,0.172,3930.4,3930.0,0.002]
[1760875022096,0.172,3930.4,3930.1,0.4637]
[1760875022692,0.172,3930.4,3930.0,0.002]
[1760875022883,0.172,3930.4,3930.0,0.76673557]
[1760875023082,0.172,3930.4,3930.0,0.30303557]
[1760875023314,0.172,3930.4,3930.1,0.4637]
[1760875023620,0.172,3930.4,3930.0,0.30303557]
[1760875023818,2.54435554,3930.3,3930.0,0.76673557]
[1760875024018,0.2024,3930.3,3930.0,0.002]
[1760875024247,0.172,3930.4,3930.0,0.002]
[1760875024248,2.71627366,3930.4,3930.0,0.002]
[1760875025047,0.172,3930.4,3930.0,0.002]
[1760875025547,2.71627573,3930.4,3930.0,0.002]
[1760875025734,2.54434553,3930.3,3930.0,0.002]
[1760875025933,0.3744,3930.4,3930.0,0.002]
[1760875026446,0.172,3930.4,3930.0,0.002]
[1760875027244,0.172,3930.4,3930.1,0.2248]
[1760875027444,0.172,3930.4,3930.0,0.002]
[1760875028030,0.172,3930.4,3930.0,0.442]
[1760875028224,0.172,3930.4,3930.0,0.002]
[1760875028440,0.172,3930.4,3930.0,0.442]
[1760875029719,0.172,3930.4,3930.0,0.002]
[1760875030750,0.172,3930.4,3930.0,0.1292]
[1760875030948,0.172,3930.4,3930.0,0.593]
[1760875031145,0.172,3930.4,3930.0,0.1292]
[1760875031551,0.172,3930.4,3930.1,0.4638]
[1760875032625,0.172,3930.4,3930.0,0.1292]
[1760875033535,0.172,3930.4,3930.0,0.593]
[1760875033850,0.172,3930.4,3930.0,0.1292]
[1760875034058,0.172,3930.4,3930.0,0.593]
[1760875034559,0.172,3930.4,3930.0,0.1292]
[1760875036460,0.172,3930.4,3930.0,0.593]
[1760875036638,0.172,3930.4,3930.0,0.1292]
[1760875039575,0.3673,3930.4,3930.0,0.1292]
[1760875042379,0.172,3930.4,3930.0,0.1292]
[1760875042577,0.3673,3930.4,3930.0,0.1292]
[1760875042884,0.1953,3930.3,3930.0,0.1292]
[1760875044777,0.172,3930.4,3930.0,0.1292]
[1760875045073,0.3673,3930.4,3930.0,0.1292]
[1760875046344,0.172,3930.4,3930.0,0.1292]
[1760875046878,0.3673,3930.4,3930.0,0.1292]
[1760875047772,0.172,3930.4,3930.0,0.1292]
[1760875048547,2.54446451,3930.1,3930.0,0.002]
[1760875048772,1.728,3930.1,3930.0,0.002]
[1760875048970,4.46776451,3930.1,3930.0,0.002]
[1760875049380,7.16678749,3930.1,3930.0,0.002]
[1760875051053,4.42702298,3930.1,3930.0,0.002]
[1760875051265,7.16678749,3930.1,3930.0,0.002]
[1760875052185,4.37448749,3930.1,3930.0,0.002]
[1760875052352,7.06476451,3930.1,3930.0,0.002]
[1760875052680,1.9233,3930.1,3930.0,0.002]
[1760875052882,0.172,3930.4,3930.0,0.002]
[1760875053076,2.54438919,3930.3,3930.0,0.002]
[1760875053245,0.1953,3930.1,3930.0,0.002]
[1760875053450,0.172,3930.4,3930.0,0.002]
[1760875053657,2.71629202,3930.4,3930.0,0.002]
[1760875053886,2.54435966,3930.3,3930.0,0.002]
[1760875054100,2.73965966,3930.3,3930.0,0.002]
[1760875055196,0.1953,3930.3,3930.0,0.002]
[1760875055499,2.73965662,3930.3,3930.0,0.002]
[1760875055695,0.1953,3930.2,3930.0,0.002]
[1760875056295,2.54435662,3930.3,3930.0,0.002]
[1760875056482,0.1953,3930.2,3930.0,0.002]
[1760875058065,0.172,3930.4,3930.0,0.002]
[1760875058999,0.1953,3930.3,3930.0,0.002]
[1760875059881,2.73963997,3930.3,3930.0,0.002]
[1760875060279,2.54433997,3930.3,3930.0,0.002]
[1760875060595,2.73963997,3930.3,3930.0,0.002]
[1760875061398,2.54446451,3930.1,3930.0,0.002]
[1760875062318,5.26761367,3930.2,3930.0,0.002]
[1760875062616,2.54446451,3930.1,3930.0,0.002]
[1760875064204,1.728,3930.1,3930.0,0.002]
[1760875066804,4.27246451,3930.1,3930.0,0.002]
[1760875067008,4.46776451,3930.1,3930.0,0.002]
[1760875069842,0.1953,3930.1,3930.0,0.002]
[1760875070252,4.39961123,3930.2,3930.0,0.002]
[1760875070453,4.59491123,3930.2,3930.0,0.002]
[1760875070812,4.39961123,3930.2,3930.0,0.002]
[1760875071028,4.59491123,3930.2,3930.0,0.002]
[1760875072252,2.73976451,3930.1,3930.0,0.002]
[1760875073114,0.1953,3930.1,3930.0,0.002]
[1760875073314,4.39961217,3930.2,3930.0,0.002]
[1760875073520,1.8552,3930.2,3930.0,0.002]
[1760875073726,2.54446451,3930.1,3930.0,0.002]
[1760875073952,2.73976451,3930.1,3930.0,0.002]
[1760875074247,1.8552,3930.2,3930.0,0.002]
[1760875075823,1.9,3930.4,3930.1,2.76926451]
[1760875076030,0.172,3930.4,3930.3,2.54433503]
[1760875076240,0.172,3930.4,3930.3,3.00653503]
[1760875076420,0.172,3930.4,3930.2,0.27712645]
[1760875076951,0.172,3930.4,3930.3,0.76703777]
[1760875077151,0.172,3930.4,3930.3,3.00653503]
[1760875080361,0.172,3930.4,3930.3,3.64013503]
[1760875082566,0.001,3930.8,3930.7,3.17767611]
[1760875082768,0.001,3930.8,3930.7,5.77267611]
[1760875082930,0.001,3930.8,3930.7,7.11278055]
[1760875084486,1e-08,3931.2,3931.1,3.17741725]
[1760875084683,1e-08,3931.2,3931.1,5.13021725]
[1760875084884,0.001,3931.8,3931.7,3.17702905]
[1760875085090,0.001,3931.8,3931.7,0.57205531]
[1760875085391,0.2146,3931.7,3930.8,0.4613]
[1760875085557,0.2146,3931.7,3931.1,2.54376225]
[1760875085760,0.2146,3931.7,3931.2,2.595]
[1760875085959,0.219,3931.6,3931.2,2.595]
[1760875086155,0.219,3931.6,3931.3,0.51388625]
[1760875086354,0.219,3931.6,3931.5,0.1264]
[1760875086648,0.2146,3931.7,3931.5,0.1264]
[1760875087083,0.219,3931.6,3931.5,0.1264]
[1760875088258,0.2146,3931.7,3931.5,0.1264]
[1760875088461,0.219,3931.6,3931.5,0.1264]
[1760875089556,0.2146,3931.7,3931.5,0.1264]
[1760875090273,0.4336,3931.7,3931.5,0.1264]
[1760875090590,0.2146,3931.7,3931.5,0.1264]
[1760875090961,0.4336,3931.7,3931.5,0.1264]
[1760875094071,0.2146,3931.7,3931.5,0.1264]
[1760875094273,0.051,3931.8,3931.5,0.1264]
[1760875094770,0.4314,3931.7,3931.5,0.1264]
[1760875095712,0.4324,3931.7,3931.5,0.1264]
[1760875096282,0.4314,3931.6,3931.5,0.1264]
[1760875099109,0.4314,3931.6,3931.3,0.1264]
[1760875099110,1.728,3931.5,3931.3,0.1264]
[1760875099318,0.001,3931.7,3931.3,0.1264]
[1760875099516,0.4314,3931.4,3931.3,0.1264]
[1760875100508,0.2169,3931.6,3931.3,0.1264]
[1760875100706,0.001,3931.7,3931.3,0.1264]
[1760875100891,0.001,3931.7,3931.4,0.4431]
[1760875101091,0.001,3931.7,3931.5,0.1264]
[1760875101494,0.001,3931.7,3931.5,0.5695]
[1760875102918,0.001,3931.7,3931.6,2.98659374]
[1760875105634,0.001,3931.7,3931.6,3.74659374]
[1760875107444,0.001,3931.7,3931.6,6.33959374]
[1760875107951,0.001,3931.7,3931.6,5.89649374]
[1760875108322,0.001,3931.7,3931.6,3.74659374]
[1760875108522,0.001,3931.7,3931.6,6.96861287]
[1760875109847,0.001,3931.7,3931.6,10.83861287]
[1760875111223,0.001,3931.7,3931.6,10.71221287]
[1760875111628,0.001,3931.7,3931.6,6.84221287]
[1760875112447,0.001,3931.7,3931.6,10.71221287]
[1760875112624,0.001,3931.9,3931.7,3.17702905]
[1760875112833,0.001,3931.9,3931.8,4.24817918]
[1760875113031,0.001,3931.9,3931.8,4.69127918]
[1760875117321,0.2147,3933.6,3932.1,3.17677031]
[1760875117322,1e-08,3932.2,3932.1,3.17677031]
[1760875117539,1e-08,3932.2,3932.1,5.99567031]
[1760875117744,1e-08,3932.2,3932.1,7.44233879]
[1760875118173,1e-08,3932.2,3932.1,7.95657423]
[1760875120846,1e-08,3932.2,3932.1,4.92207423]
[1760875121042,1e-08,3932.2,3932.1,7.28817423]
[1760875121362,1e-08,3932.2,3932.1,7.41457423]
[1760875121825,1e-08,3932.2,3932.1,7.85607423]
[1760875123137,1e-08,3932.2,3932.1,7.41457423]
[1760875126038,0.23380001,3932.2,3932.1,7.41457423]
[1760875126448,1e-08,3932.2,3932.1,7.41457423]
[1760875127957,0.40430001,3932.7,3932.6,3.17644697]
[1760875128176,0.40430001,3932.7,3932.6,5.76844697]
[1760875129781,0.17050001,3932.7,3932.6,5.76844697]
[1760875129945,0.40430001,3932.7,3932.6,5.76844697]
[1760875131644,0.40430001,3932.7,3932.6,2.592]
[1760875132045,0.40430001,3932.7,3932.4,2.54294968]
[1760875132250,0.2338,3932.6,3932.5,2.592]
[1760875132465,0.2338,3932.6,3932.2,3.87]
[1760875132466,0.2338,3932.6,3932.2,2.592]
[1760875132669,0.2338,3932.5,3932.2,5.13509295]
[1760875132872,0.2338,3932.4,3932.2,5.13509295]
[1760875133151,0.2338,3932.3,3932.2,5.13509295]
[1760875133359,0.17050001,3932.7,3932.6,2.54284697]
[1760875133558,0.001,3933.0,3932.7,2.5427802]
[1760875133967,0.2332,3932.9,3932.7,2.5427802]
[1760875134172,0.2332,3932.9,3932.8,2.54271765]
[1760875134555,0.001,3933.0,3932.9,2.542653]
[1760875134886,0.4026,3932.9,3932.7,2.54272358]
[1760875135183,0.4026,3932.8,3932.6,5.13484693]
[1760875135387,0.4026,3932.7,3932.6,5.13484693]
[1760875135555,0.4026,3932.7,3932.6,2.592]
[1760875136261,0.001,3933.0,3932.7,2.54272421]
[1760875136457,0.2182,3932.9,3932.7,2.54272421]
[1760875136675,0.4048,3932.9,3932.7,2.54272421]
[1760875137403,0.1866,3932.8,3932.6,5.13481386]
[1760875137614,0.1866,3932.7,3932.6,5.13481386]
[1760875137908,0.1866,3932.7,3932.6,5.26121386]
[1760875138566,0.2182,3932.9,3932.7,2.54276256]
[1760875138899,0.2182,3932.9,3932.8,2.54271765]
[1760875139094,0.2182,3932.9,3932.8,2.66911765]
[1760875139298,0.4048,3932.9,3932.8,0.1264]
[1760875139995,0.001,3933.0,3932.9,2.542653]
[1760875140195,0.2185,3932.9,3932.8,2.66911338]
[1760875140396,0.4048,3932.9,3932.8,2.66911338]
[1760875140721,0.4048,3932.9,3932.8,2.66911765]
[1760875141199,0.001,3933.0,3932.8,2.66911765]
[1760875141378,0.1873,3933.0,3932.9,2.542653]
[1760875141580,0.1873,3933.0,3932.8,2.66910528]
[1760875141993,0.001,3933.0,3932.8,2.66910528]
[1760875142173,0.001,3933.0,3932.8,2.6690891]
[1760875142390,0.1863,3932.9,3932.8,2.6690891]
[1760875142588,0.001,3933.0,3932.9,3.176253]
[1760875142792,0.001,3933.0,3932.9,5.133653]
[1760875142969,0.001,3933.0,3932.9,2.591]
[1760875143175,0.1873,3933.0,3932.9,2.591]
[1760875144492,0.1873,3933.0,3931.8,0.002]
[1760875144493,1.728,3932.9,3931.8,0.002]
[1760875144694,2.76085876,3932.9,3932.0,2.54321964]
[1760875144899,0.1866,3932.8,3932.2,2.543098]
[1760875145098,0.1866,3932.8,3931.9,5.13429575]
[1760875145099,0.1866,3932.7,3932.1,2.54316168]
[1760875145696,0.1866,3932.7,3932.2,2.54310015]
[1760875146092,0.2182,3932.9,3932.3,2.543037]
[1760875146312,0.1866,3932.8,3932.3,2.543037]
[1760875146612,0.1866,3932.7,3932.3,2.543037]
[1760875146826,0.1866,3932.6,3932.3,2.543037]
[1760875147002,0.2182,3932.9,3932.3,2.543037]
[1760875147209,0.4048,3932.9,3932.3,2.543037]
[1760875147408,0.1866,3932.8,3932.3,2.543037]
[1760875147611,0.1866,3932.7,3932.3,2.543037]
[1760875147811,0.2182,3932.9,3932.3,2.543037]
[1760875148020,0.1866,3932.6,3932.3,2.543037]
[1760875148514,0.4048,3932.9,3932.3,2.543037]
[1760875148693,0.4058,3932.9,3932.3,2.543037]
[1760875149914,0.1866,3932.8,3932.2,2.5430976]
[1760875150422,0.1866,3932.8,3932.3,2.54303741]
[1760875150813,0.1866,3932.7,3932.3,2.54303741]
[1760875151117,0.2192,3932.9,3932.3,2.54303741]
[1760875151317,0.4058,3932.9,3932.3,2.54303741]
[1760875151826,0.2192,3932.9,3932.3,2.54303741]
[1760875152122,0.1866,3932.8,3932.2,2.54309074]
[1760875152491,0.2192,3932.9,3932.1,2.591]
[1760875152697,1.728,3932.5,3932.4,0.1264]
[1760875152924,1.9146,3932.5,3932.4,0.1264]
[1760875153291,1.9146,3932.5,3932.0,2.591]
[1760875153523,1.728,3932.3,3932.2,0.1264]
[1760875153722,2.54304096,3932.3,3932.2,0.1264]
[1760875153930,2.54304096,3932.3,3931.9,0.002]
[1760875153931,2.54311382,3932.2,3932.0,0.1264]
[1760875154223,2.72971382,3932.2,3932.0,0.1264]
[1760875154429,2.54311382,3932.2,3932.0,0.1264]
[1760875154596,0.1866,3932.1,3932.0,0.1264]
[1760875154791,4.45777031,3932.1,3932.0,0.1264]
[1760875155633,4.27123499,3932.0,3931.9,0.002]
[1760875155995,4.45783499,3932.0,3931.9,0.002]
[1760875156514,1.9146,3932.3,3931.9,0.002]
[1760875156716,4.45764329,3932.3,3931.9,0.002]
[1760875157093,2.7297087,3932.2,3931.9,0.002]
[1760875157536,0.1866,3932.1,3931.9,0.002]
[1760875158333,1.728,3932.0,3931.9,0.002]
[1760875158505,1.9146,3932.1,3931.9,0.002]
[1760875158710,0.1866,3932.1,3931.9,0.002]
[1760875159968,1.728,3932.2,3931.9,0.002]
[1760875160332,0.1866,3932.1,3931.9,0.002]
[1760875160634,1.9146,3932.2,3931.9,0.002]
[1760875161164,1.728,3932.2,3931.9,0.002]
[1760875161533,0.1866,3932.1,3931.9,0.002]
[1760875161949,0.1866,3932.0,3931.9,0.002]
[1760875162539,2.72983499,3932.0,3931.9,0.002]
[1760875162742,1.9146,3932.0,3931.9,0.002]
[1760875163549,4.45783499,3932.0,3931.9,0.002]
[1760875163839,1.9146,3932.0,3931.9,0.002]
[1760875165063,4.45783499,3932.0,3931.9,0.002]
[1760875165755,4.27123499,3932.0,3931.9,0.002]
[1760875165937,4.45783499,3932.0,3931.9,0.002]
[1760875166948,1.9146,3932.0,3931.9,0.002]
[1760875167676,1.728,3932.0,3931.9,0.002]
[1760875172476,4.45783499,3932.0,3931.9,0.002]
[1760875177775,16.40913499,3932.0,3931.9,0.002]
[1760875178482,15.16401699,3932.0,3931.9,0.002]
[1760875178651,16.54901699,3932.0,3931.9,0.002]
[1760875179392,15.16401699,3932.0,3931.9,0.002]
[1760875179591,4.45783499,3932.0,3931.9,0.002]
[1760875179755,15.17658399,3932.0,3931.9,0.002]
[1760875180155,14.85914899,3932.0,3931.9,0.002]
[1760875180648,15.01414799,3932.0,3931.9,0.002]
[1760875181679,11.76355399,3932.0,3931.9,0.002]
[1760875182880,13.72257499,3932.0,3931.9,0.002]
[1760875183564,12.33757499,3932.0,3931.9,0.002]
[1760875183881,10.87583099,3932.0,3931.9,0.002]
[1760875184076,8.84950099,3932.0,3931.9,0.002]
[1760875184282,9.03610099,3932.0,3931.9,0.002]
[1760875184883,11.85091799,3932.0,3931.9,0.002]
[1760875185079,11.41779999,3932.0,3931.9,0.002]
[1760875186096,11.97729399,3932.0,3931.9,0.002]
[1760875186297,11.76778999,3932.0,3931.9,0.002]
[1760875186868,4.45783499,3932.0,3931.9,0.002]
[1760875187065,11.92379899,3932.0,3931.9,0.002]
[1760875188204,14.46479899,3932.0,3931.9,0.002]
[1760875188498,11.89224899,3932.0,3931.9,0.002]
[1760875189269,4.45783499,3932.0,3931.9,0.002]
[1760875189571,11.91781199,3932.0,3931.9,0.002]
[1760875189907,9.42581299,3932.0,3931.9,0.002]
[1760875190482,7.31689499,3932.0,3931.9,0.002]
[1760875191278,9.90789499,3932.0,3931.9,0.002]
[1760875191478,10.09449499,3932.0,3931.9,0.002]
[1760875192379,7.04883499,3932.0,3931.9,0.002]
[1760875192582,16.36969599,3932.0,3931.9,0.002]
[1760875193516,20.99893299,3932.0,3931.9,0.002]
[1760875193808,21.46857739,3932.0,3931.9,0.002]
[1760875194506,25.06857739,3932.0,3931.9,0.002]
[1760875194883,23.84270386,3932.0,3931.9,0.002]
[1760875195284,23.79837839,3932.0,3931.9,0.002]
[1760875195594,21.44901739,3932.0,3931.9,0.002]
[1760875196605,10.85254664,3932.0,3931.9,0.002]
[1760875197313,11.03914664,3932.0,3931.9,0.002]
[1760875197689,13.68486164,3932.0,3931.9,0.002]
[1760875198619,16.83191064,3932.0,3931.9,0.002]
[1760875199716,17.59429399,3932.0,3931.9,0.002]
[1760875199918,17.31029399,3932.0,3931.9,0.002]
[1760875200094,13.35233844,3932.0,3931.9,0.002]
[1760875200294,13.25035499,3932.0,3931.9,0.002]
[1760875200717,13.88763099,3932.0,3931.9,0.002]
[1760875201517,12.47871599,3932.0,3931.9,0.002]
[1760875201719,9.87651699,3932.0,3931.9,0.002]
[1760875202206,4.27123499,3932.0,3931.9,0.4542]
[1760875202601,4.27123499,3932.0,3931.9,0.002]
[1760875204022,6.86223499,3932.0,3931.9,0.002]
[1760875204326,6.86223499,3932.0,3931.9,0.4542]
[1760875204521,4.27123499,3932.0,3931.9,0.4542]
[1760875204901,4.27123499,3932.0,3931.9,0.002]
[1760875204902,6.86223499,3932.0,3931.9,0.002]
[1760875205316,7.04883499,3932.0,3931.9,0.002]
[1760875205519,6.86223499,3932.0,3931.9,0.002]
[1760875206625,6.86223499,3932.0,3931.9,0.4395]
[1760875207207,4.27123499,3932.0,3931.9,0.4395]
[1760875207813,4.27123499,3932.0,3931.9,0.002]
[1760875208012,4.27123499,3932.0,3931.9,0.4395]
[1760875209435,6.86123499,3932.0,3931.9,0.4395]
[1760875210337,6.98763499,3932.0,3931.9,0.4395]
[1760875211113,1.8544,3932.0,3931.9,0.4395]
[1760875211315,0.04432268,3932.5,3931.9,0.4395]
[1760875211316,0.1264,3932.5,3931.9,0.4395]
[1760875211517,0.001,3932.7,3931.9,0.4395]
[1760875212208,2.54309799,3932.3,3931.9,0.4395]
[1760875212539,2.54310564,3932.2,3932.0,0.4551]
[1760875212733,4.27117031,3932.1,3932.0,0.4551]
[1760875212931,1.728,3932.1,3932.0,0.4551]
[1760875213118,1.728,3932.1,3932.0,0.75534636]
[1760875213327,1.728,3932.1,3932.0,0.4551]
[1760875215246,0.001,3932.7,3932.0,0.4551]
[1760875215855,1.729,3932.7,3932.0,0.4551]
[1760875216214,0.001,3932.7,3932.0,0.4551]
[1760875216415,0.001,3932.7,3932.0,2.99827272]
[1760875216845,0.001,3932.7,3932.1,1.00965968]
[1760875217022,0.001,3932.7,3932.4,2.54291741]
[1760875217223,0.001,3932.7,3932.5,0.4551]
[1760875218017,0.001,3932.7,3932.4,2.54291741]
[1760875218336,0.001,3932.7,3932.5,0.4551]
[1760875219052,0.001,3932.7,3932.6,2.54284697]
[1760875219238,0.001,3932.7,3932.6,3.09694448]
[1760875219542,0.001,3932.7,3932.6,3.55204448]
[1760875220827,0.001,3932.7,3932.6,4.18564448]
[1760875221324,0.001,3932.7,3932.6,0.55409751]
[1760875221529,0.001,3932.7,3932.6,0.1264]
[1760875221751,0.001,3932.7,3931.9,0.002]
[1760875221752,2.72068231,3932.7,3931.9,0.002]
[1760875221937,0.1779,3932.7,3931.9,0.002]
[1760875222138,1.8544,3932.6,3932.0,0.1264]
[1760875222330,0.1264,3932.6,3932.0,0.1264]
[1760875222530,0.1264,3932.6,3932.0,0.84887541]
[1760875222726,2.54292043,3932.5,3932.0,0.84887541]
[1760875223030,0.1264,3932.6,3932.1,0.4551]
[1760875223238,0.1264,3932.6,3932.0,0.39377541]
[1760875223431,0.001,3932.7,3931.9,0.002]
[1760875223432,1.728,3932.0,3931.9,0.002]
[1760875223642,2.54323499,3932.0,3931.9,0.002]
[1760875223980,0.1769,3932.2,3931.9,0.002]
[1760875224445,2.54303437,3932.4,3931.9,0.002]
[1760875224644,2.54306362,3932.3,3931.9,0.002]
[1760875224962,0.1769,3932.3,3931.9,0.002]
[1760875225126,2.54321534,3932.1,3931.9,0.002]
[1760875225627,2.54304096,3932.3,3931.9,0.002]
[1760875225962,2.54310824,3932.2,3931.9,0.002]
[1760875226161,2.54304867,3932.3,3931.9,0.002]
[1760875226362,1.728,3932.0,3931.9,0.002]
[1760875226541,2.54323499,3932.0,3931.9,0.002]
[1760875226856,2.72013499,3932.0,3931.9,0.002]
[1760875228026,30.15595399,3932.0,3931.9,0.002]
[1760875228333,2.54349374,3931.6,3931.4,1e-08]
[1760875228527,33.12022639,3931.5,3931.4,1e-08]
[1760875228857,11.28819354,3931.5,3931.4,1e-08]
[1760875229157,10.36232043,3931.5,3931.4,1e-08]
[1760875229557,26.27799465,3931.5,3931.4,1e-08]
[1760875229877,14.64817565,3931.5,3931.4,1e-08]
[1760875230181,13.00717565,3931.5,3931.4,1e-08]
[1760875230479,10.65592365,3931.5,3931.4,1e-08]
[1760875230671,15.78896565,3931.5,3931.4,1e-08]
[1760875230830,15.47826765,3931.5,3931.4,1e-08]
[1760875231362,16.11186765,3931.5,3931.4,1e-08]
[1760875231549,16.79555536,3931.5,3931.4,1e-08]
[1760875231750,35.97647136,3931.5,3931.4,1e-08]
[1760875231955,36.37546155,3931.5,3931.4,1e-08]
[1760875232156,35.06350555,3931.5,3931.4,1e-08]
[1760875232334,24.59302059,3931.5,3931.4,1e-08]
[1760875232535,24.24892984,3931.5,3931.4,1e-08]
[1760875232737,2.54381725,3931.1,3931.0,1e-08]
[1760875232936,14.90252539,3930.8,3930.7,1e-08]
[1760875233136,25.5806903,3930.4,3930.3,1e-08]
[1760875233335,28.1696903,3930.4,3930.3,1e-08]
[1760875233731,32.57961435,3930.4,3930.3,1e-08]
[1760875233935,21.9823347,3930.4,3930.3,1e-08]
[1760875234562,13.92802767,3930.4,3930.3,1e-08]
[1760875234742,7.45389667,3930.4,3930.3,1e-08]
[1760875234945,9.87489467,3930.4,3930.3,1e-08]
[1760875235134,9.69759467,3930.4,3930.3,1e-08]
[1760875235552,7.96959467,3930.4,3930.3,1e-08]
[1760875235741,9.69759467,3930.4,3930.3,1e-08]
[1760875236538,9.45144467,3930.4,3930.3,1e-08]
[1760875236737,6.8622703,3930.4,3930.3,1e-08]
[1760875236938,9.6225843,3930.4,3930.3,1e-08]
[1760875237169,9.7998843,3930.4,3930.3,1e-08]
[1760875237365,9.6225843,3930.4,3930.3,1e-08]
[1760875238862,4.488314,3930.4,3930.3,1e-08]
[1760875239036,4.2722703,3930.4,3930.3,1e-08]
[1760875239237,10.8439933,3930.4,3930.3,1e-08]
[1760875239438,12.6224813,3930.4,3930.3,1e-08]
[1760875239866,6.8622703,3930.4,3930.3,1e-08]
[1760875240270,12.5075483,3930.4,3930.3,1e-08]
[1760875240568,12.6848483,3930.4,3930.3,1e-08]
[1760875240767,11.9491243,3930.4,3930.3,1e-08]
[1760875241342,7.0395703,3930.4,3930.3,1e-08]
[1760875241539,35.28849435,3930.4,3930.3,1e-08]
[1760875241741,33.95832435,3930.4,3930.3,1e-08]
[1760875242242,34.59192435,3930.4,3930.3,1e-08]
[1760875242470,37.25447235,3930.4,3930.3,1e-08]
[1760875242651,36.70160335,3930.4,3930.3,1e-08]
[1760875243294,14.4965153,3930.4,3930.3,1e-08]
[1760875243588,24.2788733,3930.4,3930.3,1e-08]
[1760875243794,21.7964353,3930.4,3930.3,1e-08]
[1760875244087,20.7047933,3930.4,3930.3,1e-08]
[1760875244488,14.8496923,3930.4,3930.3,1e-08]
[1760875245543,10.67063619,3930.4,3930.3,1e-08]
[1760875245974,10.5686093,3930.4,3930.3,1e-08]
[1760875246163,10.7459093,3930.4,3930.3,1e-08]
[1760875246355,11.10981735,3930.4,3930.3,1e-08]
[1760875246542,22.75952635,3930.4,3930.3,1e-08]
[1760875247180,20.21294935,3930.4,3930.3,1e-08]
[1760875247343,19.37489335,3930.4,3930.3,1e-08]
[1760875247548,7.40347835,3930.4,3930.3,1e-08]
[1760875247776,19.37489335,3930.4,3930.3,1e-08]
[1760875248275,18.50100335,3930.4,3930.3,1e-08]
[1760875248774,20.57377135,3930.4,3930.3,1e-08]
[1760875248962,12.0495553,3930.4,3930.3,1e-08]
[1760875249575,6.8622703,3930.4,3930.3,1e-08]
[1760875249772,16.3670023,3930.4,3930.3,1e-08]
[1760875249981,16.9906023,3930.4,3930.3,1e-08]
[1760875250476,15.1519623,3930.4,3930.3,1e-08]
[1760875250677,17.5589243,3930.4,3930.3,1e-08]
[1760875251775,23.4010283,3930.4,3930.3,1e-08]
[1760875251980,21.2847963,3930.4,3930.3,1e-08]
[1760875252349,15.7870163,3930.4,3930.3,1e-08]
[1760875252545,8.8973763,3930.4,3930.3,1e-08]
[1760875252756,6.8622703,3930.4,3930.3,1e-08]
[1760875252961,13.2647633,3930.4,3930.3,1e-08]
[1760875254851,12.0481653,3930.4,3930.3,1e-08]
[1760875255046,12.0481653,3930.4,3930.3,0.44430001]
[1760875255267,6.8622703,3930.4,3930.3,1e-08]
[1760875256179,4.2722703,3930.4,3930.3,1e-08]
[1760875256350,6.8622703,3930.4,3930.3,0.44430001]
[1760875256550,6.9894703,3930.4,3930.3,0.44430001]
[1760875256957,6.9894703,3930.4,3930.3,1e-08]
[1760875257170,6.9894703,3930.4,3930.3,0.44430001]
[1760875260365,4.4452,3930.4,3930.3,0.44430001]
[1760875260589,6.9894703,3930.4,3930.3,0.44430001]
[1760875261196,4.3994703,3930.4,3930.3,0.44430001]
[1760875261792,4.3994703,3930.4,3930.3,1e-08]
[1760875261994,4.3994703,3930.4,3930.3,0.44430001]
[1760875264695,4.3994703,3930.4,3930.3,1e-08]
[1760875265208,4.4495703,3930.4,3930.3,1e-08]
[1760875267382,30.0587473,3930.4,3930.3,1e-08]
[1760875267705,26.6450613,3930.4,3930.3,1e-08]
[1760875267882,29.0577613,3930.4,3930.3,1e-08]
[1760875268079,24.1091893,3930.4,3930.3,1e-08]
[1760875268288,19.3565493,3930.4,3930.3,1e-08]
[1760875268494,19.4796353,3930.4,3930.3,1e-08]
[1760875269098,19.0278493,3930.4,3930.3,1e-08]
[1760875269406,17.7889903,3930.4,3930.3,1e-08]
[1760875269607,19.4289723,3930.4,3930.3,1e-08]
[1760875269784,17.4612563,3930.4,3930.3,1e-08]
[1760875269975,15.8156233,3930.4,3930.3,1e-08]
[1760875270176,15.9929233,3930.4,3930.3,1e-08]
[1760875270377,12.9577433,3930.4,3930.3,1e-08]
[1760875271305,9.4113693,3930.4,3930.3,1e-08]